bitfinex/quotes_SOLUSD_20240726
["timestamp","ask_amount","ask_price","bid_price","bid_amount"]
[1722031579196,13.0,182.48,182.41,6.5547]
[1722031579410,45.0,182.47,182.41,6.5547]
[1722031582825,46.14960814,182.47,182.41,6.5547]
[1722031583025,14.14960814,182.47,182.41,6.5547]
[1722031583195,45.0,182.46,182.41,6.5547]
[1722031583911,58.0,182.46,182.41,6.5547]
[1722031587315,5.4794,182.5,182.41,6.5547]
[1722031587617,13.0,182.48,182.41,19.5547]
[1722031589209,45.0,182.47,182.41,19.5547]
[1722031589409,58.0,182.47,182.41,6.5547]
[1722031591925,45.0,182.47,182.41,6.5547]
[1722031592216,13.0,182.47,182.41,6.5547]
[1722031593009,45.0,182.48,182.41,6.5547]
[1722031593203,13.0,182.47,182.41,6.5547]
[1722031593421,58.0,182.48,182.41,19.5547]
[1722031594907,45.0,182.48,182.41,19.5547]
[1722031595221,58.0,182.48,182.41,19.5547]
[1722031596021,13.0,182.47,182.41,6.5547]
[1722031596214,63.4801,182.48,182.41,19.5547]
[1722031597521,58.0,182.48,182.41,19.5547]
[1722031598303,58.0,182.48,182.41,6.5547]
[1722031598825,58.0,182.48,182.41,19.5547]
[1722031599609,63.48,182.48,182.41,19.5547]
[1722031599816,63.48,182.48,182.41,6.5547]
[1722031600533,1.14960814,182.47,182.41,6.5547]
[1722031602845,14.14960814,182.47,182.41,6.5547]
[1722031603321,45.0,182.46,182.41,6.5547]
[1722031604004,14.14960814,182.45,182.38,16.0076]
[1722031604201,14.14960814,182.45,182.38,29.0076]
[1722031604426,45.0,182.44,182.38,29.0076]
[1722031605123,1.14960814,182.43,182.38,16.0076]
[1722031605514,14.14960814,182.43,182.38,16.0076]
[1722031605826,45.0,182.42,182.38,16.0076]
[1722031607303,5.4805,182.47,182.39,14.09640548]
[1722031607503,78.0,182.46,182.4,1.09635095]
[1722031608029,45.0,182.46,182.41,13.0]
[1722031608828,45.0,182.47,182.41,13.0]
[1722031609221,50.4804,182.47,182.41,13.0]
[1722031609415,13.6975,182.52,182.42,13.0]
[1722031609607,13.0,182.49,182.42,13.0]
[1722031610526,8.59756609,182.52,182.45,13.0]
[1722031610712,18.4789,182.52,182.45,29.104]
[1722031611236,13.0,182.52,182.45,29.104]
[1722031611727,5.4786,182.53,182.46,13.0]
[1722031611943,5.4782,182.54,182.46,1.04268805]
[1722031612231,5.4782,182.54,182.48,13.0]
[1722031612527,18.4782,182.54,182.47,13.0]
[1722031612732,18.4782,182.54,182.46,13.0]
[1722031613452,45.0,182.53,182.46,13.0]
[1722031614009,50.4785,182.53,182.46,13.0]
[1722031614618,63.4785,182.53,182.46,13.0]
[1722031616833,58.0,182.53,182.46,13.0]
[1722031619235,45.0,182.53,182.48,13.0]
[1722031619436,18.4777,182.56,182.49,13.0]
[1722031619635,45.0,182.55,182.49,13.0]
[1722031620420,45.0,182.55,182.46,1.09584751]
[1722031620421,13.0,182.53,182.45,16.104]
[1722031620628,46.14960814,182.52,182.46,13.0]
[1722031620828,63.4789,182.52,182.45,29.104]
[1722031621028,6.62870814,182.51,182.45,29.104]
[1722031621228,45.0,182.5,182.45,29.104]
[1722031621614,45.0,182.51,182.45,29.104]
[1722031622238,5.478,182.55,182.46,13.0]
[1722031622419,58.0,182.54,182.47,13.0]
[1722031622735,18.4785,182.53,182.46,13.0]
[1722031622944,45.0,182.52,182.46,13.0]
[1722031624522,45.0,182.52,182.47,13.0]
[1722031624723,45.0,182.53,182.47,13.0]
[1722031627047,58.0,182.53,182.46,13.0]
[1722031627218,1.14960814,182.52,182.46,13.0]
[1722031627422,45.0,182.53,182.45,29.104]
[1722031627618,14.14960814,182.52,182.45,29.104]
[1722031627824,58.0,182.51,182.45,16.104]
[1722031628024,58.0,182.51,182.45,29.104]
[1722031628453,58.0,182.51,182.45,16.104]
[1722031628743,58.0,182.51,182.45,29.104]
[1722031629530,45.0,182.51,182.45,29.104]
[1722031630234,58.0,182.51,182.45,29.104]
[1722031635629,14.14960814,182.5,182.45,16.104]
[1722031635829,58.0,182.49,182.39,21.7915]
[1722031636040,58.0,182.49,182.42,13.0]
[1722031636437,45.0,182.49,182.42,13.0]
[1722031636731,58.0,182.49,182.42,13.0]
[1722031639466,58.0,182.49,182.42,13.0]
[1722031640145,13.0,182.48,182.41,13.0]
[1722031640340,45.0,182.47,182.41,13.0]
[1722031641038,1.14960814,182.46,182.41,13.0]
[1722031642557,45.0,182.47,182.41,13.0]
[1722031643355,45.0,182.47,182.4,1.09631376]
[1722031643537,45.0,182.47,182.41,13.0]
[1722031643738,45.0,182.48,182.42,13.0]
[1722031643939,58.0,182.49,182.42,13.0]
[1722031644140,5.4788,182.52,182.43,13.0]
[1722031644345,6.2527,182.53,182.45,13.0]
[1722031644546,21.5641,182.55,182.47,13.0]
[1722031644749,13.0,182.54,182.47,13.0]
[1722031644961,13.0,182.54,182.48,13.0]
[1722031645147,5.4775,182.57,182.48,13.0]
[1722031645353,11.7297,182.58,182.5,13.0]
[1722031645557,13.0,182.57,182.5,13.0]
[1722031645742,13.0,182.56,182.49,14.09578927]
[1722031646344,13.0,182.56,182.5,1.09577055]
[1722031646844,45.0,182.55,182.5,1.09577055]
[1722031650152,19.62810814,182.54,182.46,15.3941]
[1722031650355,58.0,182.53,182.46,28.3941]
[1722031650853,1.14960814,182.52,182.46,28.3941]
[1722031651242,13.0,182.51,182.43,13.0]
[1722031651443,58.0,182.5,182.43,13.0]
[1722031651767,45.0,182.5,182.44,13.0]
[1722031651971,46.14960814,182.5,182.44,13.0]
[1722031652748,45.0,182.5,182.44,13.0]
[1722031653260,45.0,182.5,182.45,13.0]
[1722031653479,58.0,182.51,182.44,13.0]
[1722031653650,1.14960814,182.5,182.44,13.0]
[1722031654472,58.0,182.51,182.44,13.0]
[1722031654671,45.0,182.51,182.45,13.0]
[1722031654881,45.0,182.51,182.46,13.0]
[1722031655057,45.0,182.52,182.46,13.0]
[1722031657176,1.14960814,182.51,182.46,13.0]
[1722031657402,1.14960814,182.51,182.45,13.0]
[1722031657889,1.14960814,182.51,182.44,13.0]
[1722031659104,1.14960814,182.51,182.45,13.0]
[1722031661499,6.62870814,182.51,182.44,13.0]
[1722031661716,45.0,182.5,182.44,13.0]
[1722031661883,1.14960814,182.49,182.44,13.0]
[1722031662285,1.14960814,182.48,182.43,13.0]
[1722031662704,1.14960814,182.48,182.42,28.3941]
[1722031663202,1.14960814,182.47,182.41,13.0]
[1722031663526,1.14960814,182.47,182.38,16.1712]
[1722031663527,46.14960814,182.47,182.4,13.0]
[1722031663810,59.14960814,182.47,182.4,13.0]
[1722031667438,45.0,182.47,182.41,13.0]
[1722031667792,45.0,182.47,182.42,13.0]
[1722031667994,45.0,182.48,182.42,13.0]
[1722031668614,45.0,182.48,182.43,13.0]
[1722031668795,45.0,182.49,182.44,13.0]
[1722031668995,24.6527,182.51,182.44,13.0]
[1722031669296,6.1735,182.51,182.45,13.0]
[1722031669696,19.1735,182.51,182.44,13.0]
[1722031670428,6.1735,182.51,182.46,13.0]
[1722031670728,16.5467,182.52,182.46,13.0]
[1722031671298,22.0255,182.52,182.46,13.0]
[1722031671918,50.4792,182.51,182.46,13.0]
[1722031672119,50.4792,182.51,182.45,13.0]
[1722031672831,50.4792,182.51,182.44,13.0]
[1722031673721,63.4792,182.51,182.44,13.0]
[1722031673902,13.0,182.49,182.42,13.0]
[1722031674102,46.14960814,182.48,182.42,13.0]
[1722031674322,46.14960814,182.48,182.41,13.0]
[1722031674732,45.0,182.48,182.42,13.0]
[1722031675026,45.0,182.48,182.43,1.09618453]
[1722031675413,45.0,182.48,182.43,13.0]
[1722031675615,45.0,182.48,182.39,1.09617044]
[1722031675616,64.62940814,182.49,182.42,13.0]
[1722031675795,64.62940814,182.49,182.41,13.0]
[1722031676631,63.4798,182.49,182.41,13.0]
[1722031676926,45.0,182.49,182.42,13.0]
[1722031677102,13.0,182.49,182.42,13.0]
[1722031677419,45.0,182.48,182.43,13.0]
[1722031677791,45.0,182.49,182.44,13.0]
[1722031677991,45.0,182.5,182.44,13.0]
[1722031679202,5.4784,182.54,182.46,13.0]
[1722031679407,13.0,182.53,182.46,13.0]
[1722031679906,20.0,182.52,182.45,13.0]
[1722031680322,1.14960814,182.51,182.4,1.09594104]
[1722031680535,51.62870814,182.51,182.45,13.0]
[1722031680713,64.62870814,182.51,182.44,13.0]
[1722031681808,64.62870814,182.51,182.43,13.0]
[1722031682223,63.4791,182.51,182.43,13.0]
[1722031683004,58.0,182.51,182.44,13.0]
[1722031683905,45.0,182.51,182.45,13.0]
[1722031685524,63.4792,182.51,182.4,1.09603272]
[1722031685723,63.4792,182.51,182.44,13.0]
[1722031686112,14.14960814,182.5,182.43,13.0]
[1722031686525,13.0,182.49,182.39,20.0]
[1722031686839,46.14960814,182.48,182.41,13.0]
[1722031687035,46.14960814,182.48,182.42,13.0]
[1722031687737,45.0,182.48,182.42,13.0]
[1722031688736,45.0,182.48,182.39,20.0]
[1722031688935,45.0,182.48,182.43,13.0]
[1722031689121,13.0,182.51,182.44,13.0]
[1722031689325,45.0,182.5,182.44,13.0]
[1722031689710,45.0,182.5,182.45,13.0]
[1722031690217,45.0,182.51,182.45,13.0]
[1722031698923,1.14960814,182.5,182.44,13.0]
[1722031699432,1.14960814,182.5,182.4,1.04345662]
[1722031699630,63.4792,182.51,182.43,13.0]
[1722031699834,63.4792,182.51,182.45,13.0]
[1722031700034,50.4792,182.51,182.45,13.0]
[1722031700250,45.0,182.51,182.44,13.0]
[1722031700452,50.4792,182.51,182.39,21.09605809]
[1722031700625,50.4792,182.51,182.44,13.0]
[1722031700832,63.4792,182.51,182.44,13.0]
[1722031701043,63.4792,182.51,182.39,20.0]
[1722031701239,63.4792,182.51,182.44,13.0]
[1722031702143,1.14960814,182.5,182.44,13.0]
[1722031702825,58.0,182.51,182.44,13.0]
[1722031703023,50.4791,182.51,182.44,13.0]
[1722031705341,50.4791,182.51,182.39,20.0]
[1722031705650,50.4791,182.51,182.44,13.0]
[1722031706928,50.4791,182.51,182.39,20.0]
[1722031707129,13.0,182.49,182.39,20.0]
[1722031707342,46.14960814,182.48,182.42,13.0]
[1722031708248,1.14960814,182.47,182.42,13.0]
[1722031708461,45.0,182.48,182.42,13.0]
[1722031708832,1.14960814,182.47,182.39,20.0]
[1722031709140,1.14960814,182.47,182.42,13.0]
[1722031711265,45.0,182.48,182.43,13.0]
[1722031711763,45.0,182.49,182.39,20.0]
[1722031711967,45.0,182.49,182.43,13.0]
[1722031712157,45.0,182.5,182.43,13.0]
[1722031712340,58.0,182.51,182.44,13.0]
[1722031712849,45.0,182.51,182.44,13.0]
[1722031713050,58.0,182.51,182.44,13.0]
[1722031714850,45.0,182.51,182.45,13.0]
[1722031715370,45.0,182.52,182.45,13.0]
[1722031715870,45.0,182.52,182.46,13.0]
[1722031716367,45.0,182.52,182.47,13.0]
[1722031716569,45.0,182.53,182.47,13.0]
[1722031718072,50.4785,182.53,182.47,13.0]
[1722031718668,63.4785,182.53,182.46,13.0]
[1722031721466,50.4785,182.53,182.47,13.0]
[1722031721678,50.4785,182.53,182.4,1.0961205]
[1722031721679,63.4785,182.53,182.46,13.0]
[1722031725676,50.4785,182.53,182.47,13.0]
[1722031728081,13.0,182.52,182.4,3.2668469]
[1722031728285,13.0,182.47,182.38,16.1712]
[1722031728480,45.0,182.46,182.4,13.0]
[1722031729477,45.0,182.46,182.39,13.0]
[1722031731578,14.14960814,182.45,182.38,16.1712]
[1722031731781,45.0,182.44,182.38,29.1712]
[1722031732167,45.0,182.44,182.38,13.0]
[1722031734182,13.0,182.4,182.36,0.7847425]
[1722031737171,1.14960814,182.39,182.36,0.7847425]
[1722031737377,59.14960814,182.39,182.36,0.7847425]
[1722031737881,14.14960814,182.38,182.36,0.7847425]
[1722031738370,1.14960814,182.38,182.36,0.7847425]
[1722031738779,14.14960814,182.38,182.36,0.7847425]
[1722031739287,1.14960814,182.38,182.36,0.7847425]
[1722031740680,29.2015,182.37,182.36,0.7847425]
[1722031740989,99.6848,182.37,182.36,0.7847425]
[1722031741287,100.83440814,182.37,182.36,0.7847425]
[1722031742298,99.6848,182.37,182.36,0.7847425]
[1722031742493,86.6848,182.37,182.36,0.7847425]
[1722031742675,99.6848,182.37,182.36,0.7847425]
[1722031742868,100.83440814,182.37,182.36,0.7847425]
[1722031743572,87.83440814,182.37,182.36,0.7847425]
[1722031743870,100.83440814,182.37,182.36,0.7847425]
[1722031744869,41.6848,182.37,182.36,0.7847425]
[1722031745071,18.4831,182.38,182.36,0.7847425]
[1722031745298,5.4833,182.37,182.36,0.7847425]
[1722031745475,18.4833,182.37,182.36,0.7847425]
[1722031745998,5.4831,182.38,182.36,0.7847425]
[1722031746170,13.0,182.37,182.36,0.7847425]
[1722031746371,78.0,182.37,182.36,0.7847425]
[1722031746593,83.4833,182.37,182.36,0.7847425]
[1722031750275,65.0,182.37,182.36,0.7847425]
[1722031750885,78.0,182.37,182.36,0.7847425]
[1722031751497,65.0,182.37,182.36,0.7847425]
[1722031751703,78.0,182.37,182.36,0.7847425]
[1722031751873,83.4833,182.37,182.36,0.7847425]
[1722031755186,70.4833,182.37,182.36,0.7847425]
[1722031755379,83.4833,182.37,182.36,0.7847425]
[1722031755586,65.0,182.37,182.36,0.7847425]
[1722031756194,20.0,182.37,182.36,0.7847425]
[1722031757500,65.0,182.37,182.36,0.7847425]
[1722031758591,70.4833,182.37,182.36,0.7847425]
[1722031758792,20.0,182.37,182.36,0.7847425]
[1722031762105,13.0,182.42,182.36,0.7847425]
[1722031762289,50.4823,182.41,182.36,0.7847425]
[1722031762682,5.4823,182.41,182.36,0.7847425]
[1722031762883,18.4823,182.41,182.36,0.7847425]
[1722031763109,6.63200814,182.4,182.36,0.7847425]
[1722031763302,5.4824,182.4,182.36,0.7847425]
[1722031763485,18.4822,182.41,182.36,0.7847425]
[1722031763802,20.0,182.4,182.36,0.7847425]
[1722031765088,20.0,182.4,182.36,13.7847425]
[1722031765286,20.0,182.41,182.36,13.7847425]
[1722031765711,25.4822,182.41,182.36,13.7847425]
[1722031766201,5.4814,182.44,182.38,13.0]
[1722031766405,5.4814,182.44,182.39,14.09645732]
[1722031766601,5.4814,182.44,182.39,13.0]
[1722031767711,18.4809,182.46,182.4,1.09641472]
[1722031768015,70.481,182.45,182.39,29.2833]
[1722031768307,18.4813,182.44,182.39,16.2833]
[1722031768514,5.4816,182.43,182.39,16.2833]
[1722031769109,6.63120814,182.43,182.39,16.2833]
[1722031769292,19.63120814,182.43,182.36,7.3872425]
[1722031769492,13.0,182.41,182.36,7.3872425]
[1722031770126,1.14960814,182.42,182.36,7.3872425]
[1722031770127,1.14960814,182.42,182.36,20.3872425]
[1722031770424,13.0,182.44,182.37,13.0]
[1722031770597,45.0,182.43,182.37,13.0]
[1722031772105,1.14960814,182.42,182.36,20.3872425]
[1722031773492,58.0,182.43,182.36,20.3872425]
[1722031774220,1.14960814,182.42,182.36,20.3872425]
[1722031774400,58.0,182.43,182.36,20.3872425]
[1722031774598,45.0,182.43,182.36,20.3872425]
[1722031774799,45.0,182.43,182.37,13.0]
[1722031778307,1.14960814,182.42,182.37,13.0]
[1722031779418,45.0,182.43,182.37,13.0]
[1722031781304,1.14960814,182.42,182.37,13.0]
[1722031782622,45.0,182.43,182.37,13.0]
[1722031782824,45.0,182.43,182.36,20.3872425]
[1722031783031,1.14960814,182.42,182.36,20.3872425]
[1722031783326,1.14960814,182.41,182.36,0.7847425]
[1722031783525,1.14960814,182.41,182.36,13.7847425]
[1722031784329,1.14960814,182.41,182.36,0.7847425]
[1722031784622,46.14960814,182.41,182.36,0.7847425]
[1722031795534,13.0,182.39,182.36,0.7847425]
[1722031795714,46.14960814,182.38,182.36,0.7847425]
[1722031797727,59.14960814,182.38,182.36,0.7847425]
[1722031797913,58.0,182.38,182.36,0.7847425]
[1722031798113,45.0,182.38,182.36,0.7847425]
[1722031799232,13.0,182.44,182.37,13.0]
[1722031799531,20.0,182.43,182.37,13.0]
[1722031800110,21.14960814,182.43,182.37,13.0]
[1722031801037,25.4816,182.43,182.37,13.0]
[1722031801216,63.4818,182.42,182.36,13.7847425]
[1722031801417,63.4818,182.42,182.36,0.7847425]
[1722031801418,20.0,182.41,182.36,0.7847425]
[1722031801619,45.0,182.4,182.36,0.7847425]
[1722031803133,20.0,182.41,182.36,13.7847425]
[1722031803334,20.0,182.41,182.37,13.0]
[1722031803538,20.0,182.42,182.37,13.0]
[1722031803753,45.0,182.41,182.36,13.7847425]
[1722031803923,20.0,182.4,182.36,13.7847425]
[1722031807940,20.0,182.42,182.37,13.0]
[1722031808829,15.0545,182.51,182.41,13.0]
[1722031809049,5.4794,182.5,182.44,13.0]
[1722031809255,18.4788,182.52,182.45,13.0]
[1722031809543,18.4788,182.52,182.42,16.3443]
[1722031809544,5.4788,182.52,182.46,13.0]
[1722031810243,18.4786,182.53,182.46,13.0]
[1722031810744,5.4781,182.55,182.47,14.09599961]
[1722031810920,13.0,182.54,182.48,1.09587916]
[1722031811316,18.4783,182.54,182.47,13.0]
[1722031812125,6.2083,182.57,182.49,13.0]
[1722031812443,6.2083,182.57,182.5,13.0]
[1722031812740,5.4774,182.57,182.51,13.0]
[1722031813152,5.4767,182.6,182.52,14.09567365]
[1722031813329,18.4768,182.59,182.52,13.0]
[1722031813717,1.14960814,182.58,182.52,13.0]
[1722031814534,18.4768,182.59,182.52,13.0]
[1722031815338,18.477,182.58,182.5,16.146]
[1722031815543,20.0,182.57,182.52,13.0]
[1722031815742,25.4774,182.57,182.5,16.146]
[1722031816065,13.0,182.54,182.5,16.146]
[1722031816226,58.0,182.53,182.46,13.0]
[1722031816423,13.0,182.53,182.47,30.0]
[1722031816850,13.0,182.53,182.46,13.0]
[1722031818359,1.14960814,182.52,182.46,13.0]
[1722031819051,1.14960814,182.52,182.47,13.0]
[1722031819354,45.0,182.56,182.48,13.0]
[1722031819570,20.0,182.55,182.5,13.0]
[1722031819853,20.0,182.55,182.45,16.146]
[1722031819854,20.0,182.55,182.51,13.0]
[1722031820241,20.0,182.55,182.52,13.0]
[1722031820445,13.0,182.6,182.53,13.0]
[1722031821860,65.0,182.59,182.53,13.0]
[1722031822155,65.0,182.59,182.54,13.0]
[1722031822463,45.0,182.59,182.54,14.09549582]
[1722031822648,45.0,182.6,182.54,14.09549582]
[1722031822852,45.0,182.6,182.54,13.0]
[1722031823444,64.62600814,182.6,182.53,29.146]
[1722031823645,20.0,182.59,182.53,29.146]
[1722031823947,1.14960814,182.58,182.53,29.146]
[1722031824538,1.14960814,182.57,182.48,22.4659]
[1722031824743,13.0,182.56,182.49,13.0]
[1722031825161,50.4773,182.58,182.5,13.0]
[1722031825461,20.0,182.57,182.51,13.0]
[1722031826238,21.14960814,182.57,182.51,13.0]
[1722031827138,5.4788,182.52,182.44,16.1254]
[1722031827360,14.14960814,182.51,182.44,29.1254]
[1722031827562,1.14960814,182.51,182.45,13.0]
[1722031827772,1.14960814,182.51,182.46,13.0]
[1722031828259,1.14960814,182.51,182.45,13.0]
[1722031828447,5.4794,182.5,182.44,16.1254]
[1722031828647,14.14960814,182.49,182.42,13.0]
[1722031828854,59.14960814,182.48,182.41,13.0]
[1722031829063,1.14960814,182.47,182.41,13.0]
[1722031831474,14.14960814,182.47,182.41,13.0]
[1722031831649,65.0,182.46,182.4,13.0]
[1722031831850,1.14960814,182.45,182.4,13.0]
[1722031832045,1.14960814,182.45,182.41,13.0]
[1722031832657,65.0,182.46,182.41,13.0]
[1722031838275,45.0,182.46,182.42,13.0]
[1722031838472,45.0,182.46,182.36,0.7847425]
[1722031838473,6.124,182.54,182.45,13.0]
[1722031838675,18.4786,182.53,182.46,13.0]
[1722031838999,5.4796,182.5,182.36,1.88090229]
[1722031839176,13.0,182.51,182.43,13.0]
[1722031839493,13.0,182.51,182.44,13.0]
[1722031839862,65.0,182.5,182.44,13.0]
[1722031840070,1.14960814,182.49,182.44,13.0]
[1722031840384,1.14960814,182.48,182.44,13.0]
[1722031840586,70.4796,182.5,182.44,13.0]
[1722031843774,20.0,182.5,182.46,13.0]
[1722031844389,20.0,182.52,182.46,13.0]
[1722031844593,6.62810814,182.53,182.47,13.0]
[1722031844769,15.2077,182.55,182.48,13.0]
[1722031844770,20.6857,182.55,182.48,13.0]
[1722031844968,45.0,182.54,182.49,13.0]
[1722031845371,5.478,182.55,182.49,13.0]
[1722031845586,1.14960814,182.54,182.49,13.0]
[1722031846172,20.0,182.54,182.49,13.0]
[1722031846575,20.0,182.54,182.43,28.6288]
[1722031846576,20.0,182.54,182.5,13.0]
[1722031846781,21.14960814,182.56,182.5,13.0]
[1722031847694,26.62720814,182.56,182.43,67.6288]
[1722031847881,50.4779,182.55,182.49,13.0]
[1722031848072,1.14960814,182.54,182.49,13.0]
[1722031848384,21.14960814,182.54,182.49,13.0]
[1722031848870,20.0,182.54,182.49,13.0]
[1722031851572,21.14960814,182.54,182.48,13.0]
[1722031851776,45.0,182.53,182.47,13.0]
[1722031852003,1.14960814,182.52,182.47,13.0]
[1722031852303,1.14960814,182.51,182.46,13.0]
[1722031852681,18.4793,182.51,182.44,13.0]
[1722031852984,59.14960814,182.5,182.43,28.6288]
[1722031853294,58.0,182.5,182.43,13.0]
[1722031853797,45.0,182.5,182.45,13.0]
[1722031853997,45.0,182.51,182.45,13.0]
[1722031854198,20.0,182.5,182.45,13.0]
[1722031854899,45.0,182.51,182.45,13.0]
[1722031855287,20.0,182.5,182.45,13.0]
[1722031856888,45.0,182.49,182.43,13.0]
[1722031857082,63.4798,182.49,182.42,13.0]
[1722031857397,39.62960814,182.48,182.41,13.0]
[1722031857695,58.0,182.47,182.4,13.0]
[1722031857873,1.14960814,182.46,182.4,13.0]
[1722031858072,1.14960814,182.45,182.4,13.0]
[1722031858276,1.14960814,182.45,182.41,13.0]
[1722031858786,6.32,182.5,182.44,13.0]
[1722031858989,20.0,182.49,182.45,13.0]
[1722031859298,1.14960814,182.48,182.43,13.0]
[1722031859801,20.0,182.49,182.43,13.0]
[1722031860602,45.0,182.48,182.43,13.0]
[1722031860905,45.0,182.48,182.42,13.0]
[1722031861108,45.0,182.48,182.43,13.0]
[1722031862706,64.62970814,182.48,182.41,13.0]
[1722031862909,45.0,182.48,182.44,13.0]
[1722031864093,50.4797,182.49,182.44,13.0]
[1722031864298,20.0,182.48,182.44,13.0]
[1722031864701,45.0,182.47,182.43,13.0]
[1722031865384,20.0,182.48,182.44,13.0]
[1722031865701,20.0,182.5,182.44,13.0]
[1722031865898,45.0,182.49,182.44,13.0]
[1722031866404,20.0,182.48,182.44,13.0]
[1722031866707,1.14960814,182.47,182.43,13.0]
[1722031867004,45.0,182.47,182.43,13.0]
[1722031868081,45.0,182.48,182.43,13.0]
[1722031870005,45.0,182.49,182.43,13.0]
[1722031870194,20.0,182.48,182.43,13.0]
[1722031870389,45.0,182.47,182.43,13.0]
[1722031870597,1.14960814,182.46,182.4,13.0]
[1722031870796,1.14960814,182.45,182.4,13.0]
[1722031872086,1.14960814,182.46,182.4,13.0]
[1722031872282,1.14960814,182.45,182.4,13.0]
[1722031874303,45.0,182.47,182.4,13.0]
[1722031874501,45.0,182.47,182.41,13.0]
[1722031876305,45.0,182.47,182.42,13.0]
[1722031876507,45.0,182.47,182.43,13.0]
[1722031878290,45.0,182.47,182.42,13.0]
[1722031878491,46.14960814,182.47,182.41,13.0]
[1722031878802,59.14960814,182.47,182.4,13.0]
[1722031879725,46.14960814,182.47,182.41,13.0]
[1722031881194,5.481,182.45,182.36,0.7847425]
[1722031881422,46.14960814,182.44,182.38,13.0]
[1722031882400,46.14960814,182.44,182.37,13.0]
[1722031882401,59.14960814,182.44,182.37,13.0]
[1722031883028,46.14960814,182.44,182.38,13.0]
[1722031885323,64.63100814,182.44,182.37,13.0]
[1722031885516,34.14960814,182.43,182.36,13.7847425]
[1722031885719,1.14960814,182.42,182.36,13.7847425]
[1722031885912,46.14960814,182.42,182.36,13.7847425]
[1722031889635,46.14960814,182.42,182.37,13.0]
[1722031890540,45.0,182.42,182.37,13.0]
[1722031891561,5.4827,182.4,182.36,0.7847425]
[1722031891844,66.14960814,182.39,182.36,0.7847425]
[1722031892416,79.14960814,182.39,182.36,0.7847425]
[1722031892826,1.14960814,182.38,182.36,0.7847425]
[1722031894742,5.4816,182.43,182.37,13.0]
[1722031894928,65.0,182.42,182.38,13.0]
[1722031895316,20.0,182.42,182.39,13.0]
[1722031895644,18.4809,182.46,182.4,13.0]
[1722031895834,1.14960814,182.45,182.4,13.0]
[1722031896828,51.63060814,182.45,182.39,13.0]
[1722031897142,20.0,182.44,182.38,13.0]
[1722031897447,46.14960814,182.43,182.37,13.0]
[1722031897617,21.14960814,182.42,182.37,13.0]
[1722031897817,45.0,182.41,182.36,13.7847425]
[1722031898243,20.0,182.42,182.4,13.0]
[1722031898618,20.0,182.46,182.4,13.0]
[1722031898936,20.0,182.46,182.39,13.0]
[1722031898937,45.0,182.45,182.39,13.0]
[1722031899116,20.0,182.44,182.39,13.0]
[1722031899318,45.0,182.43,182.39,13.0]
[1722031899632,21.2737,182.47,182.41,13.0]
[1722031899815,45.0,182.46,182.41,13.0]